bitfinex-derivatives/quotes_SOLF0:USTF0_20250929
["timestamp","ask_amount","ask_price","bid_price","bid_amount"]
[1759163407361,11.9695,210.17,210.09,7.48]
[1759163407362,7.69,210.17,210.09,7.48]
[1759163407657,11.173491,210.16,210.11,11.7606]
[1759163407965,3.483491,210.15,210.12,7.48]
[1759163408257,3.483491,210.14,210.12,4.2803]
[1759163408466,3.483491,210.13,210.12,11.7603]
[1759163409159,3.483491,210.13,210.12,7.48]
[1759163410566,7.69,210.22,210.15,4.2797]
[1759163410770,3.48460974,210.21,210.15,4.2797]
[1759163410970,7.69,210.19,210.15,4.2797]
[1759163411155,3.48460974,210.18,210.15,11.7597]
[1759163411360,3.48460974,210.17,210.16,7.48]
[1759163411766,7.69,210.22,210.16,7.48]
[1759163412060,3.48433243,210.21,210.17,3.48642551]
[1759163412264,3.48433243,210.2,210.17,3.48642551]
[1759163412467,3.48433243,210.19,210.18,11.7591]
[1759163413068,0.20627,210.23,210.2,4.2788]
[1759163413264,3.48291966,210.22,210.2,4.2788]
[1759163413471,3.48291966,210.21,210.2,7.48]
[1759163413671,3.48291966,210.21,210.18,3.48642551]
[1759163413873,3.48291966,210.2,210.18,11.37642551]
[1759163414068,7.46,210.22,210.13,7.89]
[1759163414274,7.46,210.2,210.13,7.89]
[1759163414569,7.46,210.18,210.09,7.89]
[1759163414767,3.47414397,210.17,210.09,7.89]
[1759163414966,3.47414397,210.16,210.11,4.2805]
[1759163415266,4.279,210.2,210.11,4.2805]
[1759163415267,7.46,210.19,210.11,4.2805]
[1759163415475,7.46,210.17,210.09,3.48642551]
[1759163415674,3.47268556,210.16,210.08,7.89]
[1759163415863,3.47268556,210.15,210.08,7.89]
[1759163416068,3.47268556,210.14,210.08,7.89]
[1759163416274,7.46,210.17,210.09,12.1711]
[1759163416574,3.47236218,210.16,210.09,12.1711]
[1759163416776,3.47236218,210.15,210.09,12.1711]
[1759163416976,7.46,210.17,210.11,4.2807]
[1759163417177,3.47235471,210.16,210.11,4.2807]
[1759163417371,3.47235471,210.15,210.12,7.89]
[1759163417572,7.46,210.17,210.12,7.89]
[1759163417874,3.47234145,210.16,210.12,7.89]
[1759163418075,3.47234145,210.15,210.12,7.89]
[1759163418368,7.46,210.17,210.12,7.89]
[1759163418675,10.93238136,210.16,210.12,7.89]
[1759163418973,3.47238136,210.15,210.12,7.89]
[1759163419274,7.46,210.16,210.12,7.89]
[1759163419474,3.47241871,210.15,210.1,2.2310762]
[1759163419671,7.46,210.2,210.12,2.2310762]
[1759163419876,3.47245481,210.19,210.12,2.2310762]
[1759163420072,3.47245481,210.18,210.16,7.89]
[1759163420273,7.46,210.2,210.16,7.89]
[1759163420574,3.47233016,210.19,210.16,7.89]
[1759163420774,3.47233016,210.18,210.16,12.1695]
[1759163420977,3.47454206,210.17,210.16,12.1695]
[1759163421176,7.46,210.2,210.16,7.89]
[1759163421480,7.46,210.18,210.09,10.1210762]
[1759163421680,3.47394705,210.17,210.09,10.1210762]
[1759163421880,3.47394705,210.16,210.09,10.1210762]
[1759163422181,10.93394705,210.15,210.09,14.4019762]
[1759163422372,7.46,210.15,210.09,14.4019762]
[1759163422574,3.47267801,210.14,210.09,2.2310762]
[1759163422782,7.46,210.19,210.11,2.2310762]
[1759163422987,3.47210148,210.18,210.12,7.89]
[1759163423177,3.47210148,210.17,210.11,10.1210762]
[1759163423382,7.46,210.19,210.11,10.1210762]
[1759163423680,3.47177079,210.18,210.11,10.1210762]
[1759163423980,3.47177079,210.17,210.11,10.1210762]
[1759163424183,7.46,210.19,210.11,7.89]
[1759163424478,3.47172588,210.18,210.13,7.64]
[1759163424684,7.80627,210.23,210.14,2.2310762]
[1759163424979,3.4719835,210.22,210.14,2.2310762]
[1759163425181,3.4719835,210.21,210.14,2.2310762]
[1759163425375,7.80627,210.23,210.14,2.2310762]
[1759163425376,3.4719835,210.2,210.14,2.2310762]
[1759163425577,7.6,210.18,210.13,4.2801]
[1759163425777,0.20627,210.23,210.13,4.2801]
[1759163425778,7.6,210.16,210.13,4.2801]
[1759163426286,7.6,210.19,210.1,6.5117762]
[1759163426581,5.70227811,210.18,210.1,4.2807]
[1759163426788,3.47120191,210.17,210.1,4.2807]
[1759163426975,13.30227811,210.16,210.1,4.2807]
[1759163427175,7.6,210.14,210.08,4.2812]
[1759163427378,7.6,210.12,210.08,4.2812]
[1759163428186,9.8310762,210.16,210.08,4.2812]
[1759163428384,3.47058259,210.15,210.08,4.2812]
[1759163428581,3.47058259,210.14,210.08,4.2812]
[1759163428779,11.07058259,210.13,210.09,7.64]
[1759163428980,7.6,210.15,210.08,4.2812]
[1759163429184,3.47074348,210.14,210.08,4.2812]
[1759163429481,7.6,210.12,210.08,4.2812]
[1759163429681,7.6,210.12,210.08,11.9212]
[1759163431186,7.6,210.15,210.09,4.2809]
[1759163431479,7.6,210.13,210.09,11.9209]
[1759163431881,9.49826139,210.2,210.09,2.2310762]
[1759163432087,7.6,210.18,210.11,2.2310762]
[1759163432288,3.46993794,210.17,210.12,7.64]
[1759163432490,7.6,210.22,210.15,4.2797]
[1759163432691,3.47072849,210.21,210.15,4.2797]
[1759163432990,7.6,210.19,210.15,4.2797]
[1759163433189,11.07072849,210.18,210.15,4.2797]
[1759163433489,7.6,210.18,210.15,4.2797]
[1759163433690,11.8786,210.22,210.15,4.2797]
[1759163433886,3.47159857,210.21,210.15,4.2797]
[1759163434080,11.07159857,210.2,210.15,11.9197]
[1759163434390,11.07159857,210.19,210.15,11.9197]
[1759163434592,3.47159857,210.18,210.15,11.9197]
[1759163434790,4.2788,210.21,210.15,4.2797]
[1759163434991,7.6,210.19,210.15,4.2797]
[1759163435189,3.47190301,210.18,210.15,4.2797]
[1759163435487,4.2788,210.21,210.15,4.2797]
[1759163435791,7.6,210.19,210.15,4.2797]
[1759163435993,3.47239491,210.18,210.15,4.2797]
[1759163436194,3.47239491,210.17,210.13,4.2803]
[1759163436387,7.6,210.2,210.13,4.2803]
[1759163436586,3.47303962,210.19,210.13,4.2803]
[1759163436884,0.20627,210.23,210.17,7.64]
[1759163437081,3.473414,210.22,210.18,6.5101762]
[1759163437297,3.473414,210.21,210.18,14.1501762]
[1759163437594,3.473414,210.2,210.18,14.1501762]
[1759163437782,3.473414,210.19,210.18,6.5101762]
[1759163438194,0.20627,210.23,210.19,11.9189]
[1759163438382,3.47413504,210.22,210.19,11.9189]
[1759163438584,3.47413504,210.21,210.19,11.9189]
[1759163438787,7.80627,210.23,210.19,11.9189]
[1759163438996,3.47439202,210.22,210.19,11.9189]
[1759163439194,3.47439202,210.21,210.19,11.9189]
[1759163439396,3.4742138,210.2,210.19,4.2789]
[1759163440893,0.20627,210.23,210.19,11.9189]
[1759163441092,3.47550285,210.22,210.19,11.9189]
[1759163441292,3.47550285,210.21,210.19,11.9189]
[1759163441495,7.80627,210.23,210.19,11.9189]
[1759163441793,3.47524814,210.22,210.19,11.9189]
[1759163441994,3.47524814,210.21,210.19,11.9189]
[1759163442290,7.80627,210.23,210.19,11.9189]
[1759163442495,3.47505781,210.22,210.19,11.9189]
[1759163442698,3.47505781,210.21,210.19,11.9189]
[1759163442890,7.80627,210.23,210.19,11.9189]
[1759163443090,3.47520858,210.22,210.19,11.9189]
[1759163443294,3.47520858,210.21,210.19,11.9189]
[1759163443497,7.80627,210.23,210.19,11.9189]
[1759163443796,3.47533529,210.22,210.19,4.2789]
[1759163443994,3.47533529,210.21,210.2,7.64]
[1759163444698,0.20627,210.23,210.22,7.64]
[1759163444898,0.20627,210.23,210.22,9.8710762]
[1759163448396,321.9310762,210.32,210.22,83.31367925]
[1759163448397,3.47190851,210.28,210.22,83.31367925]
[1759163448600,7.6,210.34,210.26,9.8710762]
[1759163448799,3.472138,210.33,210.28,2.2310762]
[1759163448996,3.472138,210.32,210.28,2.2310762]
[1759163449202,7.6,210.35,210.29,7.64]
[1759163449395,3.47095052,210.34,210.28,9.8710762]
[1759163449702,7.6,210.41,210.33,2.2310762]
[1759163449894,3.47230455,210.4,210.33,2.2310762]
[1759163450095,7.6,210.38,210.32,14.1474762]
[1759163450295,3.47230455,210.37,210.32,7.64]
[1759163450498,7.6,210.35,210.31,2.2310762]
[1759163450692,7.6,210.35,210.31,9.8710762]
[1759163451300,3.4679363,210.34,210.29,6.5079762]
[1759163451500,7.6,210.36,210.29,6.5079762]
[1759163451695,7.6,210.41,210.34,7.64]
[1759163451901,3.46832294,210.4,210.34,9.8710762]
[1759163452107,7.6,210.38,210.34,9.8710762]
[1759163452300,7.6,210.42,210.34,2.2310762]
[1759163452500,3.46607774,210.41,210.34,2.0578962]
[1759163452798,3.46607774,210.4,210.34,2.0578962]
[1759163453000,11.06607774,210.39,210.34,9.6978962]
[1759163453202,3.46607774,210.38,210.34,9.6978962]
[1759163453403,320.44741895,210.44,210.36,2.2310762]
[1759163453608,3.46392644,210.43,210.36,9.8710762]
[1759163453802,11.06392644,210.42,210.36,2.2310762]
[1759163454002,11.06392644,210.41,210.36,9.8710762]
[1759163454205,3.46392644,210.4,210.36,9.8710762]
[1759163455606,3.46392644,210.4,210.37,7.81]
[1759163455805,3.46392644,210.43,210.37,7.81]
[1759163456010,11.43392644,210.42,210.37,7.81]
[1759163456210,3.46392644,210.41,210.36,2.2310762]
[1759163456410,3.46392644,210.41,210.39,7.81]
[1759163456602,125.09,210.46,210.38,6.5060762]
[1759163456603,3.46392644,210.43,210.38,2.2310762]
[1759163456807,3.46392644,210.42,210.38,2.2310762]
[1759163457009,3.46392644,210.45,210.39,7.81]
[1759163457210,3.46392644,210.44,210.39,7.81]
[1759163457412,3.46392644,210.43,210.38,2.2310762]
[1759163457610,3.46392644,210.45,210.4,2.2310762]
[1759163457913,3.46392644,210.44,210.41,7.81]
[1759163458210,11.43392644,210.43,210.34,7.81]
[1759163458410,3.45452465,210.42,210.34,10.0410762]
[1759163459413,7.72902465,210.42,210.34,7.81]
[1759163459608,2.2310762,210.38,210.29,10.0410762]
[1759163459808,7.97,210.37,210.29,10.0410762]
[1759163460010,7.97,210.37,210.29,7.81]
[1759163460011,3.45452465,210.36,210.29,7.81]
[1759163460816,127.3010762,210.42,210.33,7.81]
[1759163461111,3.45282019,210.41,210.33,12.086]
[1759163461507,3.45282019,210.41,210.33,7.81]
[1759163461708,10.2010762,210.38,210.29,2.2310762]
[1759163461904,10.2010762,210.36,210.28,7.81]
[1759163462308,10.2010762,210.32,210.24,1.25577559]
[1759163463107,2.2310762,210.3,210.23,7.81]
[1759163463415,2.2310762,210.28,210.18,10.0410762]
[1759163463614,2.2310762,210.28,210.2,4.2787]
[1759163464009,2.2310762,210.32,210.22,2.2310762]
[1759163464208,2.2310762,210.32,210.24,6.5089762]
[1759163465508,2.2310762,210.32,210.25,4.2777]
[1759163465714,7.97,210.33,210.25,4.2777]
[1759163466215,7.97,210.37,210.26,10.0410762]
[1759163466412,10.2010762,210.37,210.29,7.81]
[1759163467311,10.2010762,210.37,210.29,12.0868]
[1759163467515,119.5110762,210.4,210.3,2.2310762]
[1759163467719,3.45340292,210.39,210.3,2.2310762]
[1759163468815,3.45340292,210.39,210.32,4.2762]
[1759163470215,3.45340292,210.39,210.34,2.2310762]
[1759163470520,127.5210762,210.45,210.36,2.2310762]
[1759163470814,3.45367713,210.44,210.36,2.2310762]
[1759163471620,3.45367713,210.44,210.38,2.2310762]
[1759163471820,7.97,210.45,210.38,10.0410762]
[1759163472418,3.45459515,210.44,210.38,10.0410762]
[1759163472610,117.3,210.47,210.4,2.2310762]
[1759163472809,66.4322,210.61,210.4,2.2310762]
[1759163472810,324.65936139,210.54,210.45,2.2310762]
[1759163473016,3.45463499,210.53,210.43,7.81]
[1759163473217,3.45463499,210.52,210.46,2.2310762]
[1759163473422,3.45463499,210.51,210.46,2.2310762]
[1759163473722,3.45463499,210.53,210.47,7.81]
[1759163473922,3.45463499,210.52,210.46,10.3410762]
[1759163474219,3.45463499,210.51,210.47,8.11]
[1759163474423,3.45463499,210.5,210.46,8.11]
[1759163474722,3.45463499,210.53,210.47,4.2734]
[1759163474924,3.45463499,210.52,210.48,8.11]
[1759163475119,3.45463499,210.51,210.48,8.11]
[1759163475320,3.45463499,210.54,210.48,8.11]
[1759163475520,3.45463499,210.53,210.47,4.2734]
[1759163475721,3.45463499,210.53,210.44,66.484]
[1759163475722,3.45463499,210.52,210.48,8.11]
[1759163475921,3.45463499,210.51,210.44,12.3839]
[1759163476121,3.45463499,210.5,210.44,12.3839]
[1759163476431,3.44841685,210.54,210.44,12.3839]
[1759163476620,3.44841685,210.53,210.44,12.3839]
[1759163476820,3.44841685,210.52,210.46,4.2735]
[1759163477028,3.44841685,210.51,210.46,4.2735]
[1759163477325,3.44841685,210.5,210.47,8.11]
[1759163477526,3.44841685,210.54,210.47,8.11]
[1759163477734,3.44841685,210.53,210.49,8.11]
[1759163477925,3.44841685,210.52,210.48,4.2731]
[1759163478123,3.44841685,210.51,210.48,4.2731]
[1759163478327,3.44841685,210.54,210.48,4.2731]
[1759163478630,7.58,210.59,210.51,8.11]
[1759163478837,3.44860709,210.58,210.51,8.11]
[1759163479040,3.44860709,210.57,210.51,8.11]
[1759163479333,3.44716885,210.58,210.51,8.11]
[1759163479536,3.44716885,210.59,210.51,8.11]
[1759163479738,3.44716885,210.58,210.51,8.11]
[1759163479931,3.44716885,210.59,210.51,8.11]
[1759163480130,3.44717507,210.58,210.51,8.11]
[1759163480329,3.44717507,210.57,210.51,8.11]
[1759163480532,110.3,210.6,210.51,8.11]
[1759163480533,3.44717507,210.56,210.51,8.11]
[1759163480733,7.58,210.58,210.51,8.11]
[1759163480934,3.44717507,210.57,210.51,8.11]
[1759163481227,7.58,210.58,210.51,8.11]
[1759163481429,3.44481831,210.57,210.46,8.11]
[1759163481738,11.8512,210.58,210.47,4.2732]
[1759163482036,3.44426467,210.57,210.47,4.2732]
[1759163482226,11.8512,210.58,210.47,4.2732]
[1759163482427,3.44338302,210.57,210.47,4.2732]
[1759163482636,11.8512,210.58,210.47,4.2732]
[1759163482836,3.44338302,210.57,210.47,4.2732]
[1759163483035,3.44338302,210.56,210.47,4.2732]
[1759163483230,4.2715,210.57,210.47,4.2732]
[1759163483425,3.44269061,210.56,210.47,4.2732]
[1759163483629,3.44269061,210.55,210.47,4.2732]
[1759163483832,4.2715,210.57,210.47,4.2732]
[1759163484032,3.44246967,210.56,210.47,4.2732]
[1759163484241,3.44246967,210.55,210.47,4.2732]
[1759163484441,4.2715,210.57,210.47,4.2732]
[1759163484632,3.44214173,210.56,210.47,4.2732]
[1759163484829,3.44214173,210.55,210.47,4.2732]
[1759163485033,4.2718,210.55,210.47,4.2732]
[1759163485242,7.58,210.58,210.47,4.2732]
[1759163485442,3.44217209,210.57,210.47,4.2732]
[1759163485639,7.74,210.55,210.46,8.11]
[1759163485944,7.74,210.53,210.44,4.2738]
[1759163486142,3.44210124,210.52,210.44,4.2738]
[1759163486341,7.74,210.53,210.44,4.2738]
[1759163486342,3.44210124,210.51,210.44,4.2738]
[1759163486536,7.74,210.53,210.44,4.2738]
[1759163486842,3.44231896,210.52,210.44,4.2738]
[1759163487136,3.44231896,210.51,210.44,4.2738]
[1759163487333,3.44231896,210.5,210.44,4.2738]
[1759163487534,12.0123,210.53,210.44,4.2738]
[1759163487834,3.44360575,210.52,210.44,4.2738]
[1759163488042,3.44360575,210.51,210.44,4.2738]
[1759163488242,3.44481511,210.5,210.44,4.2738]
[1759163488542,3.44531634,210.52,210.45,7.71]
[1759163488744,3.44538342,210.56,210.45,7.71]
[1759163488940,7.74,210.57,210.45,7.71]
[1759163488941,3.44538342,210.55,210.45,7.71]
[1759163489143,3.44538342,210.54,210.5,7.71]
[1759163489344,7.74,210.57,210.5,7.71]
[1759163489540,3.44636833,210.56,210.5,7.71]
[1759163489740,3.44636833,210.55,210.5,7.71]
[1759163489936,3.44636833,210.54,210.5,7.71]
[1759163490136,7.74,210.57,210.5,7.71]
[1759163490345,3.44863301,210.56,210.5,7.71]
[1759163490545,3.44863301,210.55,210.49,11.9829]
[1759163490744,7.74,210.53,210.47,4.2734]
[1759163490948,11.18863301,210.52,210.47,4.2734]
[1759163491149,7.74,210.52,210.47,11.9834]
[1759163491746,7.74,210.53,210.44,4.2739]
[1759163491947,3.44884858,210.52,210.44,4.2739]
[1759163492247,3.44884858,210.51,210.44,4.2739]
[1759163492439,3.44884858,210.5,210.44,4.2739]
[1759163492634,7.74,210.53,210.42,7.71]
[1759163492840,3.44982608,210.52,210.46,7.71]
[1759163493044,7.74,210.57,210.46,7.71]
[1759163493242,3.4504276,210.56,210.46,7.71]
[1759163493443,3.4504276,210.55,210.5,4.2727]
[1759163493644,7.74,210.57,210.51,7.71]
[1759163493645,3.4504276,210.54,210.51,7.71]
[1759163493843,7.74,210.57,210.51,7.71]
[1759163494043,3.45182102,210.56,210.52,11.9823]
[1759163494250,3.45182102,210.55,210.47,66.4738]
[1759163494443,3.45182102,210.54,210.5,4.2727]
[1759163494645,7.74,210.58,210.5,4.2727]
[1759163494850,3.45207667,210.57,210.48,7.71]
[1759163495047,3.45207667,210.56,210.53,7.71]
[1759163495349,3.45207667,210.55,210.48,7.71]
[1759163495550,7.74,210.58,210.48,7.71]
[1759163495750,3.45247349,210.57,210.48,7.71]
[1759163496051,3.45247349,210.56,210.5,4.2727]
[1759163496249,3.45247349,210.55,210.51,7.71]
[1759163496544,7.74,210.58,210.51,7.71]
[1759163496739,3.45361253,210.57,210.51,11.9824]
[1759163496948,3.45361253,210.56,210.51,11.9824]
[1759163497246,11.19361253,210.55,210.45,7.71]
[1759163497447,3.45361253,210.54,210.48,4.2731]
[1759163497748,7.74,210.59,210.49,7.71]
[1759163498046,4.2717,210.56,210.49,7.71]
[1759163498252,3.45355372,210.55,210.49,7.71]
[1759163498451,11.19355372,210.54,210.49,7.71]
[1759163498650,3.45355372,210.53,210.49,7.71]
[1759163498946,7.74,210.54,210.49,7.71]
[1759163499152,3.45267876,210.53,210.49,7.71]
[1759163499351,7.74,210.54,210.49,7.71]
[1759163499555,3.45277131,210.53,210.49,7.71]
[1759163499752,7.74,210.54,210.49,7.71]
[1759163499951,3.45277054,210.53,210.49,7.71]
[1759163500150,4.2721,210.54,210.45,11.9836]
[1759163500452,3.4525762,210.53,210.45,11.9836]
[1759163500641,12.0127,210.51,210.45,7.71]
[1759163500948,7.74,210.57,210.45,7.71]
[1759163501156,3.4521505,210.56,210.45,7.71]
[1759163501349,3.4521505,210.55,210.45,7.71]
[1759163501549,7.74,210.53,210.45,7.71]
[1759163501846,3.4521505,210.52,210.45,7.71]
[1759163502047,3.4521505,210.51,210.45,7.71]
[1759163502352,7.74,210.53,210.42,4.2743]
[1759163502549,7.74,210.51,210.42,4.2743]
[1759163502751,3.45211507,210.5,210.43,7.71]
[1759163502953,3.45211507,210.49,210.43,7.71]
[1759163503253,3.45211507,210.5,210.43,7.71]
[1759163503454,3.45211507,210.49,210.43,7.71]
[1759163503651,7.72501507,210.5,210.43,11.984]
[1759163503950,3.45211507,210.49,210.43,7.71]
[1759163504151,7.72521507,210.49,210.43,7.71]
[1759163504354,4.2731,210.49,210.42,4.2743]
[1759163504553,3.4508445,210.48,210.42,4.2743]
[1759163505654,7.7241445,210.48,210.4,4.2747]
[1759163505953,7.7241445,210.48,210.39,7.71]
[1759163505954,3.4508445,210.47,210.39,7.71]
[1759163506456,4.2733,210.48,210.39,7.71]
[1759163507251,3.4516362,210.48,210.41,4.2744]
[1759163507448,3.4516362,210.5,210.41,4.2744]
[1759163507649,3.4516362,210.5,210.41,7.71]
[1759163507947,7.74,210.56,210.43,7.71]
[1759163508150,3.45369271,210.55,210.43,7.71]
[1759163508455,3.45369271,210.54,210.43,7.71]
[1759163508658,3.45369271,210.53,210.43,7.71]
[1759163508952,3.45369271,210.52,210.43,7.71]
[1759163509152,3.45369271,210.51,210.45,4.2737]
[1759163509343,7.74,210.54,210.45,4.2737]
[1759163509544,3.45873554,210.53,210.45,4.2737]
[1759163509749,7.74,210.51,210.45,4.2737]
[1759163509956,11.19873554,210.5,210.45,4.2737]
[1759163510259,3.45782022,210.49,210.43,11.9841]
[1759163510552,7.74,210.51,210.43,11.9841]
[1759163510751,3.46085213,210.5,210.43,11.9841]
[1759163510953,3.46085213,210.49,210.43,7.71]
[1759163511152,7.74,210.57,210.45,7.71]
[1759163511450,3.4641416,210.56,210.5,4.2726]
[1759163511655,3.4641416,210.55,210.5,11.9826]
[1759163511857,3.4641416,210.54,210.5,11.9826]
[1759163512053,3.4641416,210.53,210.5,11.9826]
[1759163512255,3.4641416,210.52,210.5,11.9826]
[1759163512558,4.2717,210.56,210.5,11.9826]
[1759163512752,7.73972033,210.55,210.5,7.71]
[1759163512957,3.46782033,210.54,210.5,7.71]
[1759163513156,3.46782033,210.53,210.47,4.2732]
[1759163513357,3.46782033,210.52,210.47,4.2732]
[1759163513556,3.46782033,210.51,210.48,7.71]
[1759163513751,3.46782033,210.5,210.48,7.71]
[1759163514057,3.47086162,210.49,210.48,7.71]
[1759163516455,3.47086162,210.49,210.45,4.2737]
[1759163516655,3.47086162,210.48,210.42,7.99]
[1759163516857,3.47086162,210.47,210.41,7.99]
[1759163517058,3.47086162,210.46,210.4,80.52911634]
[1759163517261,7.47,210.49,210.41,7.99]
[1759163517461,3.48062963,210.48,210.41,7.99]
[1759163517761,3.48062963,210.47,210.44,7.99]
[1759163517959,3.48062963,210.46,210.44,7.99]
[1759163518158,3.48062963,210.45,210.44,7.99]
[1759163518860,7.47,210.52,210.44,7.99]
[1759163519060,3.48068475,210.51,210.44,7.99]
[1759163519263,3.48068475,210.5,210.44,7.99]
[1759163519462,3.48068475,210.49,210.43,7.99]
[1759163519664,3.48068475,210.48,210.47,12.2633]
[1759163519865,3.48068475,210.48,210.47,7.99]
[1759163520159,3.48068475,210.48,210.44,4.2739]
[1759163520358,3.48068475,210.47,210.45,7.99]
[1759163520563,3.48068475,210.46,210.45,7.99]
[1759163520765,4.272,210.54,210.45,7.99]
[1759163520966,3.48095481,210.53,210.45,7.99]
[1759163521159,12.68936139,210.56,210.45,7.99]
[1759163521160,3.48095481,210.52,210.45,7.99]
[1759163521358,3.48095481,210.52,210.41,66.4942]
[1759163521359,3.48095481,210.51,210.48,7.99]
[1759163521571,3.48095481,210.5,210.48,7.99]
[1759163521770,3.48095481,210.49,210.48,7.99]
[1759163522458,3.48095481,210.49,210.47,4.2733]
[1759163522661,3.48095481,210.48,210.47,4.2733]
[1759163523065,3.48095481,210.48,210.45,4.2737]
[1759163523266,4.2725,210.52,210.46,7.99]
[1759163523465,3.48131668,210.51,210.46,7.99]
[1759163523762,3.48131668,210.5,210.42,66.4908]
[1759163523961,3.48131668,210.49,210.43,7.99]
[1759163524172,7.47,210.53,210.43,7.99]
[1759163524366,3.481679,210.52,210.43,7.99]
[1759163524663,5.21936139,210.56,210.49,4.2729]
[1759163524664,3.481679,210.51,210.49,4.2729]
[1759163524866,3.481679,210.5,210.49,12.2629]
[1759163525064,7.47,210.57,210.49,7.99]
[1759163525259,3.48215589,210.56,210.49,7.99]
[1759163525466,3.48215589,210.55,210.54,7.99]
[1759163528873,5.21936139,210.65,210.54,8.47]
[1759163529074,3.48265904,210.64,210.54,7.99]
[1759163529375,3.48265904,210.63,210.54,7.99]
[1759163529674,3.48265904,210.62,210.54,7.99]
[1759163529975,3.48265904,210.61,210.54,7.99]
[1759163530170,3.48265904,210.6,210.57,4.2712]
[1759163530376,3.48265904,210.59,210.58,7.99]
[1759163530774,3.48265904,210.59,210.52,4.2723]
[1759163531072,3.48265904,210.58,210.51,7.99]
[1759163531276,3.48265904,210.57,210.51,7.99]
[1759163531473,7.47,210.61,210.51,7.99]
[1759163531777,3.47942859,210.6,210.54,12.2618]
[1759163531977,3.47942859,210.59,210.55,7.99]
[1759163532179,3.47942859,210.58,210.52,4.2723]
[1759163532382,3.47942859,210.57,210.53,7.99]
[1759163532583,7.47,210.64,210.53,7.99]
[1759163532774,7.47,210.62,210.53,12.262]
[1759163533085,3.4787329,210.61,210.53,12.262]
[1759163533380,3.4787329,210.6,210.53,12.262]
[1759163533573,3.4787329,210.59,210.54,4.2718]
[1759163533770,11.7404,210.62,210.55,7.7]
[1759163533975,3.39825473,210.61,210.55,7.7]
[1759163534174,3.39825473,210.6,210.55,7.7]
[1759163534376,3.39825473,210.59,210.55,7.7]
[1759163534574,3.39825473,210.58,210.55,7.7]
[1759163534780,4.2707,210.61,210.55,7.7]
[1759163534981,8.1,210.59,210.53,4.272]
[1759163535178,3.3975481,210.58,210.53,11.972]
[1759163535383,8.1,210.59,210.53,11.972]
[1759163536087,12.3701,210.63,210.53,7.7]
[1759163536383,3.39724141,210.62,210.54,7.7]
[1759163536582,3.39724141,210.61,210.54,7.7]
[1759163536781,3.39724141,210.6,210.59,7.7]
[1759163536984,3.39724141,210.62,210.58,4.271]
[1759163537283,3.39724988,210.65,210.59,3.47057607]
[1759163537487,3.39724988,210.64,210.59,3.47057607]
[1759163537692,3.39724988,210.7,210.6,7.7]
[1759163537893,3.39724988,210.69,210.6,7.7]
[1759163538184,3.39724988,210.68,210.6,7.7]
[1759163538487,3.39724988,210.67,210.6,7.7]
[1759163538785,3.39724988,210.66,210.6,7.7]
[1759163538978,3.39724988,210.65,210.6,21.87810711]
[1759163539180,8.1,210.69,210.6,7.7]
[1759163539487,3.39415019,210.68,210.6,7.7]
[1759163539789,3.39415019,210.67,210.6,7.7]
[1759163540084,3.39415019,210.66,210.6,7.7]
[1759163540284,11.49415019,210.65,210.6,7.7]
[1759163540486,8.1,210.65,210.6,7.7]
[1759163540785,8.1,210.65,210.61,7.7]
[1759163540988,8.1,210.69,210.61,7.7]
[1759163541181,3.39316733,210.68,210.63,4.2701]
[1759163541379,3.39316733,210.69,210.65,7.7]
[1759163541579,3.39316733,210.73,210.65,7.7]
[1759163541778,3.39316733,210.72,210.65,7.7]
[1759163541987,3.39316733,210.71,210.65,7.7]
[1759163542183,3.39316733,210.7,210.64,2.22017995]
[1759163542387,3.39316733,210.73,210.65,7.7]
[1759163542687,3.39316733,210.72,210.66,4.2694]